[Event "ECo-C Extraliga 2023-24"]
[Site "Slovakia"]
[Date "2024.02.25"]
[Round "8.3"]
[White "Sipos, Istvan"]
[Black "Mrva, Martin"]
[Result "0-1"]
[ECO "E46"]
[WhiteElo "2457"]
[BlackElo "2363"]
[Annotator "ChessBase"]
[PlyCount "115"]
[EventDate "2023.10.06"]
[EventType "team-tourn"]
[EventCountry "SVK"]
[SourceTitle "playchess.com"]
[Source "ChessBase"]
[SourceQuality "1"]
[TimeControl "40/5400+30:1800+30"]

1. c4 {[%emt 0:00:04]} e6 {[%emt 0:00:26]} 2. d4 {[%emt 0:03:01]} Nf6 {[%emt 0:00:17]} 3. Nc3 {[%emt 0:01:15]} Bb4 {[%emt 0:00:09]} 4. e3 {[%emt 0:00:21]} O-O {[%emt 0:00:54]} 5. Nge2 {[%emt 0:01:57]} c6 {[%emt 0:00:30]} 6. a3 {[%emt 0:00:46]} Ba5 {[%emt 0:00:12]} 7. Ng3 {[%emt 0:04:39]} d5 {[%emt 0:00:40]} 8. Bd2 {[%emt 0:08:14]} Nbd7 {[%emt 0:02:42]} 9. f4 {[%emt 0:07:35]} Bc7 {[%emt 0:18:22]} 10. Qc2 {[%emt 0:21:14]} c5 {[%emt 0:07:33]} 11. dxc5 {[%emt 0:01:02]} Nxc5 {[%emt 0:02:16]} 12. b4 {[%emt 0:07:38]} Ncd7 {[%emt 0:01:17]} 13. Nb5 {[%emt 0:03:04]} Bb8 {[%emt 0:07:14]} 14. cxd5 {[%emt 0:08:29]} exd5 {[%emt 0:00:40]} 15. Rc1 {[%emt 0:04:37]} a6 {[%emt 0:14:11]} 16. Nd4 {[%emt 0:00:32]} Re8 {[%emt 0:03:24]} 17. Be2 {[%emt 0:02:04]} Nb6 {[%emt 0:03:01]} 18. O-O {[%emt 0:04:00]} Bd7 {[%emt 0:03:22]} 19. h3 {[%emt 0:02:07]} Nc4 {[%emt 0:06:59]} 20. Bxc4 {[%emt 0:00:22]} dxc4 {[%emt 0:00:14]} 21. Qxc4 {[%emt 0:05:10]} Bb5 {[%emt 0:03:38]} 22. Nxb5 {[%emt 0:00:05]} Qxd2 {[%emt 0:00:09]} 23. Qc3 {[%emt 0:04:43]} Qxc3 {[%emt 0:00:36]} 24. Nxc3 {[%emt 0:00:05]} Ba7 {[%emt 0:00:32]} 25. Kh2 {[%emt 0:00:01]} Bxe3 {[%emt 0:06:29]} 26. Rcd1 {[%emt 0:00:07]} Rac8 {[%emt 0:01:48]} 27. Rd3 {[%emt 0:01:17]} Rc4 {[%emt 0:01:15]} 28. Nge2 {[%emt 0:01:02]} h5 {[%emt 0:02:27]} 29. Rf3 {[%emt 0:04:40]} Ba7 {[%emt 0:00:16]} 30. Rd2 {[%emt 0:01:01]} h4 {[%emt 0:03:12]} 31. Rfd3 {[%emt 0:02:23]} Be3 {[%emt 0:01:33]} 32. Rd1 {[%emt 0:00:02]} Bf2 {[%emt 0:00:19]} 33. Rd8 {[%emt 0:00:38]} Bg3+ {[%emt 0:00:55]} 34. Kg1 {[%emt 0:00:01]} Rxd8 {[%emt 0:00:15]} 35. Rxd8+ {[%emt 0:00:04]} Kh7 {[%emt 0:00:04]} 36. Rd3 {[%emt 0:02:58]} Bxf4 {[%emt 0:02:07]} 37. Nxf4 {[%emt 0:00:04]} Rxf4 {[%emt 0:00:09]} 38. Nd5 {[%emt 0:00:14]} Nxd5 {[%emt 0:00:07]} 39. Rxd5 {[%emt 0:00:04]} Kg6 {[%emt 0:00:18]} 40. Rd7 {[%emt 0:00:08]} b5 {[%emt 0:00:05]} 41. Rd6+ {[%emt 0:32:39]} Rf6 {[%emt 0:30:09]} 42. Rd5 {[%emt 0:00:00]} Kh6 {[%emt 0:00:00]} 43. a4 {[%emt 0:00:00]} bxa4 {[%emt 0:00:00]} 44. Ra5 {[%emt 0:00:00]} g5 {[%emt 0:00:00]} 45. Rxa4 {[%emt 0:00:00]} Kg6 {[%emt 0:00:00]} 46. Ra5 {[%emt 0:00:00]} Rb6 {[%emt 0:00:00]} 47. Kf2 {[%emt 0:00:00]} Kh5 {[%emt 0:00:00]} 48. Kf3 {[%emt 0:00:00]} f6 {[%emt 0:00:00]} 49. Ke3 {[%emt 0:00:00]} Kg6 {[%emt 0:00:00]} 50. Kf3 {[%emt 0:00:00]} f5 {[%emt 0:00:00]} 51. Kf2 {[%emt 0:00:00]} g4 {[%emt 0:00:00]} 52. hxg4 {[%emt 0:00:00]} fxg4 {[%emt 0:00:01]} 53. Ke3 {[%emt 0:00:00]} Kh6 {[%emt 0:02:43]} 54. Re5 {[%emt 0:01:21]} Rf6 {[%emt 0:02:20]} 55. b5 {[%emt 0:01:03]} h3 {[%emt 0:01:09]} 56. gxh3 {[%emt 0:00:44]} g3 {[%emt 0:00:08]} 57. h4 {[%emt 0:04:50]} Rg6 {[%emt 0:01:09]} 58. Rg5 0-1

[Event "ECo-C Extraliga 2023-24"]
[Site "Slovakia"]
[Date "2024.02.25"]
[Round "8.3"]
[White "Finek, Vaclav"]
[Black "Bochnicka, Vladimir"]
[Result "1-0"]
[ECO "E04"]
[WhiteElo "2416"]
[BlackElo "2398"]
[Annotator "TA"]
[PlyCount "93"]
[EventDate "2023.10.06"]
[EventType "team-tourn"]
[EventCountry "SVK"]
[SourceTitle "playchess.com"]
[Source "ChessBase"]
[SourceQuality "1"]
[TimeControl "40/5400+30:1800+30"]

{[%evp 15,93,36,46,0,0,12,0,0,25,0,0,0,5,0,1,17,71,63,60,58,80,58,64,72,59,65,117,109,129,54,118,62,57,51,83,82,83,90,85,94,83,83,158,144,154,154,214,99,134,99,153,146,217,182,169,177,193,178,189,183,196,189,220,220,827,827,734,766,4675,2441,29979,29977,29981,29982,29983,29984,29984,29985,29984,29985]} 1. d4 {[%emt 0:00:03]} d5 {[%emt 0:00:05]} 2. c4 {[%emt 0:00:03]} e6 {[%emt 0:00:05]} 3. Nf3 {[%emt 0:00:03]} Nf6 {[%emt 0:00:09]} 4. g3 {[%emt 0:00:05]} dxc4 {[%emt 0:00:15]} 5. Bg2 {[%emt 0:00:06]} c6 {[%emt 0:00:11]} 6. Ne5 {[%emt 0:10:34]} Bb4+ {[%emt 0:00:32]} 7. Bd2 {[%emt 0:05:12] E04: Open Catalan: 5 Nf3.} Be7 {[%emt 0:02:07] 7...Be7 scores better than 7...Qxd4.} 8. e3 {[%emt 0:01:42]} b5 {[%emt 0:00:13]} 9. a4 {[%emt 0:02:11]} b4 $1 {[%emt 0:06:20]} 10. O-O {[%emt 0:00:53]} O-O {[%emt 0:00:35]} 11. Qc2 {[%emt 0:00:35]} Ba6 {[%emt 0:04:21]} 12. Rd1 {[%emt 0:00:26]} Qc7 {[%emt 0:04:20]} 13. Be1 {[%emt 0:00:35]} Rc8 {[%emt 0:06:08]} 14. Nd2 {[%emt 0:00:18]} Bb7 $1 {[%emt 0:00:36]} 15. Ndxc4 {[%emt 0:05:13]} Nbd7 $146 {[%emt 0:02:22]} (15... c5 $11 {keeps the balance.}) ({Predecessor:} 15... c5 16. Bxb7 Qxb7 17. dxc5 Rxc5 18. Rac1 Nc6 19. Nd3 Rd5 20. b3 Rad8 21. f3 h5 {0-1 Ciorgovean,I (2325)-Onslow,A (2174) EU-ch 23rd Vrnjacka Banja 2023 (5)}) 16. Nxd7 $16 {[%emt 0:01:08]} Nxd7 {[%emt 0:00:40]} 17. e4 {[%emt 0:03:13]} c5 {[%emt 0:27:24]} 18. d5 {[%emt 0:01:16]} exd5 $1 {[%emt 0:00:04]} 19. exd5 {[%emt 0:00:12]} Bd6 {[%emt 0:00:12]} 20. Bd2 {[%emt 0:04:55]} Re8 {[%emt 0:00:13]} (20... Ne5 $14) 21. Rac1 $16 {[%emt 0:08:34]} Rac8 {[%emt 0:14:06] [#]} 22. Qf5 {[%emt 0:11:14]} (22. Bh3 $1 $16) 22... Ne5 {[%emt 0:07:09]} (22... g6 $14 23. Qg4 Ba6) 23. Nxd6 {[%emt 0:03:36]} (23. Bxb4 $1 $16 g6 24. Qf6 Nxc4 25. Rxc4) 23... Qxd6 $14 {[%emt 0:00:08]} 24. Bf4 {[%emt 0:00:41]} Rc7 {[%emt 0:03:16]} 25. Re1 {[%emt 0:07:33]} Rce7 {[%emt 0:01:27]} 26. Re3 {[%emt 0:01:01]} f6 {[%emt 0:04:38]} (26... Bxd5 $2 27. Rd1 $18 (27. Rd3 $2 Qa6 $19) (27. Rd3 $2 Qa6 $19)) 27. Qc2 {[%emt 0:04:08]} Rc8 {[%emt 0:07:57]} 28. b3 {[%emt 0:05:23]} g5 {[%emt 0:02:05]} (28... Bxd5 $2 29. Rd3 $18) ({Better is} 28... a5) 29. Bxe5 $16 {[%emt 0:01:23]} Rxe5 {[%emt 0:00:04]} 30. Rxe5 {[%emt 0:00:56]} Qxe5 {[%emt 0:00:05]} (30... fxe5 $16 31. Qe4 (31. Qf5 h6 $18) 31... Rc7) 31. Qd2 {[%emt 0:01:53]} (31. Qc4 $18 {is more deadly. aiming for d6+.} Qd6 32. Re1) 31... Re8 {[%emt 0:04:31]} 32. h3 {[%emt 0:01:19]} (32. Rxc5 $2 Qe1+ 33. Qxe1 Rxe1+ 34. Bf1 Ba6 $19) 32... Qd6 {[%emt 0:02:06] [#]} (32... Qd4 $142 33. Qxd4 cxd4) 33. Qc2 $1 $16 {[%emt 0:00:23]} Qd7 {[%emt 0:00:56]} (33... Bxd5 $2 {too greedy.} 34. Rd1 $18 (34. Qxc5 Qxc5 35. Rxc5 Bxb3 $15) (34. Qxc5 Re1+ 35. Kh2 Qxc5 $15)) (33... Qb6 $16 34. Bf3 (34. Qxc5 Re1+ 35. Kh2 Rxc1 $11) 34... a6) 34. Qxc5 {[%emt 0:06:05]} Rc8 {[%emt 0:00:05]} 35. Qe3 {[%emt 0:00:05]} Rxc1+ {[%emt 0:00:11]} 36. Qxc1 {[%emt 0:00:06]} Bxd5 {[%emt 0:00:21]} 37. Qd2 {[%emt 0:00:22]} Be6 {[%emt 0:00:08]} 38. Qxb4 {[%emt 0:00:07]} Qd1+ {[%emt 0:02:34]} 39. Kh2 {[%emt 0:00:11]} Bf7 $2 {[%emt 0:00:32]} (39... Kf7 40. Qc5 Qd7) 40. Qb8+ $18 {[%emt 0:01:15]} Kg7 {[%emt 0:00:07]} 41. Qxa7 {[%emt 0:30:25]} Qxb3 {[%emt 0:30:05]} 42. a5 {[%emt 0:00:24]} h5 {[%emt 0:00:00]} 43. a6 {[%emt 0:00:00]} Qa2 {[%emt 0:00:00]} 44. Qc7 {[%emt 0:00:00]} Kg6 {[%emt 0:00:00]} 45. a7 {[%emt 0:00:00]} Bd5 {[%emt 0:00:00]} 46. Bxd5 {[%emt 0:00:00]} Qxd5 {[%emt 0:00:00]} 47. Qb8 {[%emt 0:00:00]} 1-0

[Event "ECo-C Extraliga 2023-24"]
[Site "Slovakia"]
[Date "2024.02.25"]
[Round "8.3"]
[White "Manik, Mikulas"]
[Black "Balogh, Csaba"]
[Result "1/2-1/2"]
[ECO "B43"]
[WhiteElo "2342"]
[BlackElo "2554"]
[Annotator "RC"]
[PlyCount "54"]
[EventDate "2023.10.06"]
[EventType "team-tourn"]
[EventCountry "SVK"]
[SourceTitle "playchess.com"]
[Source "ChessBase"]
[SourceQuality "1"]
[TimeControl "40/5400+30:1800+30"]

1. e4 {[%emt 0:00:04]} c5 {[%emt 0:02:48]} 2. Nf3 {[%emt 0:00:20]} e6 {[%emt 0:00:10]} 3. d4 {[%emt 0:00:04]} cxd4 {[%emt 0:00:05]} 4. Nxd4 {[%emt 0:00:04]} a6 {[%emt 0:00:11]} 5. Nc3 {[%emt 0:00:02]} b5 {[%emt 0:00:35]} 6. Bd3 {[%emt 0:00:03]} Bb7 {[%emt 0:00:10]} 7. O-O {[%emt 0:00:18]} Nc6 {[%emt 0:00:05]} 8. Nxc6 {[%emt 0:00:27]} Bxc6 {[%emt 0:00:09]} 9. Re1 {[%emt 0:00:24]} Bc5 {[%emt 0:05:46]} 10. Nd5 {[%emt 0:10:47]} Ne7 {[%emt 0:05:00]} 11. Nxe7 {[%emt 0:14:32]} Qxe7 {[%emt 0:00:33]} 12. Qh5 {[%emt 0:00:08]} e5 {[%emt 0:08:51]} 13. Bg5 {[%emt 0:05:27]} Qe6 {[%emt 0:00:20]} 14. Be3 {[%emt 0:02:01]} Bxe3 {[%emt 0:08:57]} 15. Rxe3 {[%emt 0:00:26]} O-O {[%emt 0:00:07]} 16. a3 {[%emt 0:06:46]} Rfe8 {[%emt 0:18:12]} 17. Rae1 {[%emt 0:07:14]} d6 {[%emt 0:12:16]} 18. Rg3 {[%emt 0:07:53]} Ra7 {[%emt 0:03:28]} 19. b3 {[%emt 0:12:05]} Rc8 {[%emt 0:23:35]} 20. h4 {[%emt 0:10:26]} Be8 {[%emt 0:01:08]} 21. Qg5 {[%emt 0:00:41]} f6 {[%emt 0:00:32]} 22. Qe3 {[%emt 0:00:08]} Rb7 {[%emt 0:01:19]} 23. c4 {[%emt 0:01:32]} Bf7 {[%emt 0:03:07]} 24. Bf1 {[%emt 0:03:52]} Qd7 {[%emt 0:00:29]} 25. Qh6 {[%emt 0:00:40]} Bg6 {[%emt 0:00:18]} 26. Qd2 {[%emt 0:00:15]} Bf7 {[%emt 0:01:19]} 27. Qh6 {[%emt 0:04:46]} Bg6 {[%emt 0:00:07]} 1/2-1/2

[Event "ECo-C Extraliga 2023-24"]
[Site "Slovakia"]
[Date "2024.02.25"]
[Round "8.3"]
[White "Borosova, Zuzana"]
[Black "Roubalik, Jakub"]
[Result "1/2-1/2"]
[ECO "A46"]
[WhiteElo "2215"]
[BlackElo "2351"]
[Annotator "ChessBase"]
[PlyCount "234"]
[EventDate "2023.10.06"]
[EventType "team-tourn"]
[EventCountry "SVK"]
[SourceTitle "playchess.com"]
[Source "ChessBase"]
[SourceQuality "1"]
[TimeControl "40/5400+30:1800+30"]

1. d4 {[%emt 0:00:07]} Nf6 {[%emt 0:00:23]} 2. Nf3 {[%emt 0:00:05]} e6 {[%emt 0:00:22]} 3. Bf4 {[%emt 0:00:19]} b6 {[%emt 0:01:29]} 4. e3 {[%emt 0:00:12]} Bb7 {[%emt 0:00:12]} 5. Bd3 {[%emt 0:02:22]} Bd6 {[%emt 0:01:14]} 6. Bxd6 {[%emt 0:09:14]} cxd6 {[%emt 0:00:05]} 7. Nbd2 {[%emt 0:05:25]} d5 {[%emt 0:01:47]} 8. c3 {[%emt 0:06:22]} d6 {[%emt 0:04:04]} 9. Qe2 {[%emt 0:02:17]} Ne4 {[%emt 0:05:37]} 10. Bb5+ {[%emt 0:14:36]} Nd7 {[%emt 0:04:37]} 11. Ba6 {[%emt 0:06:33]} Qc8 {[%emt 0:06:13]} 12. Bxb7 {[%emt 0:00:25]} Qxb7 {[%emt 0:00:02]} 13. a4 {[%emt 0:06:44]} O-O {[%emt 0:03:19]} 14. O-O {[%emt 0:00:09]} a6 {[%emt 0:09:18]} 15. Ne1 {[%emt 0:02:24]} b5 {[%emt 0:19:06]} 16. Nd3 {[%emt 0:05:33]} Rfb8 {[%emt 0:02:27]} 17. a5 {[%emt 0:19:09]} Rc8 {[%emt 0:03:17]} 18. f3 {[%emt 0:00:13]} Nxd2 {[%emt 0:00:37]} 19. Qxd2 {[%emt 0:00:01]} Nb8 {[%emt 0:00:56]} 20. Rf2 {[%emt 0:07:52]} Rf8 {[%emt 0:05:02]} 21. Re1 {[%emt 0:05:38]} Nc6 {[%emt 0:01:03]} 22. b4 {[%emt 0:00:09]} Rac8 {[%emt 0:06:18]} 23. Nb2 {[%emt 0:03:11]} Qc7 {[%emt 0:01:51]} 24. Nd1 {[%emt 0:00:10]} Ne7 {[%emt 0:01:42]} 25. Rfe2 {[%emt 0:01:20]} e5 {[%emt 0:06:56]} 26. Kh1 {[%emt 0:01:16]} Qc6 {[%emt 0:02:35]} 27. Rg1 {[%emt 0:00:29]} Rfe8 {[%emt 0:02:20]} 28. Rge1 {[%emt 0:00:36]} Ng6 {[%emt 0:01:13]} 29. g3 {[%emt 0:01:07]} f5 {[%emt 0:02:36]} 30. Kg2 {[%emt 0:00:16]} Rf8 {[%emt 0:01:03]} 31. Qa2 {[%emt 0:00:31]} Kh8 {[%emt 0:00:28]} 32. Rd2 {[%emt 0:00:06]} Rcd8 {[%emt 0:00:36]} 33. Rde2 {[%emt 0:00:38]} Rde8 {[%emt 0:03:13]} 34. Kf2 {[%emt 0:00:20]} Re7 {[%emt 0:01:22]} 35. Rd2 {[%emt 0:00:11]} Rd7 {[%emt 0:01:56]} 36. Rde2 {[%emt 0:00:02]} Rdd8 {[%emt 0:01:01]} 37. Rd2 {[%emt 0:00:20]} Ne7 {[%emt 0:00:23]} 38. Kg2 {[%emt 0:00:24]} Ng8 {[%emt 0:00:17]} 39. Rde2 {[%emt 0:01:43]} Nf6 {[%emt 0:00:15]} 40. Qd2 {[%emt 0:01:15]} Rc8 {[%emt 0:00:27]} 41. Kh1 {[%emt 0:05:30]} Rc7 {[%emt 0:03:41]} 42. Rf1 {[%emt 0:06:42]} Rfc8 {[%emt 0:01:39]} 43. Ref2 {[%emt 0:06:07]} Qe8 {[%emt 0:01:29]} 44. Re2 {[%emt 0:00:52]} Qh5 {[%emt 0:00:55]} 45. Rg2 {[%emt 0:01:02]} Qe8 {[%emt 0:08:35]} 46. Re2 {[%emt 0:01:25]} Qe6 {[%emt 0:00:50]} 47. Ref2 {[%emt 0:06:30]} g6 {[%emt 0:02:10]} 48. Re2 {[%emt 0:00:32]} Kg7 {[%emt 0:00:25]} 49. Rg2 {[%emt 0:00:21]} h6 {[%emt 0:01:36]} 50. Qe1 {[%emt 0:00:37]} Rf7 {[%emt 0:03:42]} 51. Rgf2 {[%emt 0:00:37]} g5 {[%emt 0:01:07]} 52. Qe2 {[%emt 0:00:51]} Re8 {[%emt 0:01:42]} 53. Qc2 {[%emt 0:01:26]} Rc8 {[%emt 0:02:37]} 54. Qe2 {[%emt 0:00:44]} Rcf8 {[%emt 0:01:58]} 55. Qc2 {[%emt 0:01:35]} h5 {[%emt 0:01:10]} 56. Qe2 {[%emt 0:01:50]} Kg6 {[%emt 0:00:30]} 57. Qc2 {[%emt 0:00:10]} e4 {[%emt 0:00:34]} 58. f4 {[%emt 0:00:21]} g4 {[%emt 0:00:16]} 59. Kg1 {[%emt 0:01:11]} h4 {[%emt 0:00:32]} 60. Rg2 {[%emt 0:00:09]} Rh8 {[%emt 0:00:17]} 61. Kf2 {[%emt 0:00:17]} Rfh7 {[%emt 0:00:14]} 62. Ke1 {[%emt 0:00:33]} Qc8 {[%emt 0:00:32]} 63. Qe2 {[%emt 0:00:58]} Kf7 {[%emt 0:00:27]} 64. Rfg1 {[%emt 0:00:20]} Ke6 {[%emt 0:00:33]} 65. Kd2 {[%emt 0:00:39]} Rh6 {[%emt 0:02:04]} 66. Nb2 {[%emt 0:00:40]} R8h7 {[%emt 0:00:28]} 67. Nd1 {[%emt 0:00:23]} Qh8 {[%emt 0:00:19]} 68. Qf1 {[%emt 0:01:01]} Rc7 {[%emt 0:01:27]} 69. Qe1 {[%emt 0:00:29]} Qh7 {[%emt 0:00:49]} 70. Qf1 {[%emt 0:00:52]} Rc4 {[%emt 0:00:16]} 71. Qe1 {[%emt 0:00:24]} Qc7 {[%emt 0:00:49]} 72. Ke2 {[%emt 0:00:48]} Rh8 {[%emt 0:00:57]} 73. Kf1 {[%emt 0:00:40]} hxg3 {[%emt 0:01:06]} 74. hxg3 {[%emt 0:00:06]} Rh3 {[%emt 0:00:05]} 75. Rb2 {[%emt 0:00:37]} Qc8 {[%emt 0:00:33]} 76. Rbg2 {[%emt 0:00:06]} Rc7 {[%emt 0:00:26]} 77. Qd2 {[%emt 0:00:34]} Rch7 {[%emt 0:00:34]} 78. Qe2 {[%emt 0:00:02]} Nh5 {[%emt 0:01:34]} 79. Ke1 {[%emt 0:00:07]} Nf6 {[%emt 0:00:44]} 80. Qf1 {[%emt 0:00:47]} Qh8 {[%emt 0:00:23]} 81. Nf2 {[%emt 0:00:27]} R7h6 {[%emt 0:01:53]} 82. Nd1 {[%emt 0:00:29]} Rh7 {[%emt 0:01:05]} 83. Nf2 {[%emt 0:00:03]} R3h6 {[%emt 0:00:23]} 84. Nd1 {[%emt 0:00:14]} Nd7 {[%emt 0:00:30]} 85. Nf2 {[%emt 0:00:38]} Rh5 {[%emt 0:00:31]} 86. Nd1 {[%emt 0:00:07]} Qc8 {[%emt 0:00:32]} 87. Qe2 {[%emt 0:01:22]} Nb8 {[%emt 0:00:23]} 88. Kd2 {[%emt 0:01:12]} Nc6 {[%emt 0:00:38]} 89. Ke1 {[%emt 0:00:30]} Ne7 {[%emt 0:00:30]} 90. Kd2 {[%emt 0:00:20]} Ng8 {[%emt 0:00:26]} 91. Ke1 {[%emt 0:00:24]} Nf6 {[%emt 0:00:02]} 92. Qf1 {[%emt 0:01:19]} Qh8 {[%emt 0:00:11]} 93. Nf2 {[%emt 0:00:18]} Rc7 {[%emt 0:00:06]} 94. Nd1 {[%emt 0:00:08]} Rhh7 {[%emt 0:00:11]} 95. Qe2 {[%emt 0:00:15]} Rc4 {[%emt 0:00:12]} 96. Qb2 {[%emt 0:01:00]} Qc8 {[%emt 0:00:52]} 97. Rc2 {[%emt 0:00:43]} Nd7 {[%emt 0:01:22]} 98. Rcg2 {[%emt 0:00:11]} Qh8 {[%emt 0:00:50]} 99. Qe2 {[%emt 0:00:27]} Nb8 {[%emt 0:00:18]} 100. Qd2 {[%emt 0:00:50]} Nd7 {[%emt 0:00:50]} 101. Nb2 {[%emt 0:00:20]} Rc6 {[%emt 0:00:14]} 102. Nd1 {[%emt 0:00:03]} Nf6 {[%emt 0:00:09]} 103. Qe2 {[%emt 0:00:45]} Qc8 {[%emt 0:00:14]} 104. Qb2 {[%emt 0:00:05]} Rh3 {[%emt 0:00:35]} 105. Qd2 {[%emt 0:00:21]} Rc7 {[%emt 0:00:17]} 106. Qb2 {[%emt 0:00:17]} Rch7 {[%emt 0:00:11]} 107. Qe2 {[%emt 0:00:09]} Rh1 {[%emt 0:00:29]} 108. Kf1 {[%emt 0:00:32]} R7h3 {[%emt 0:00:49]} 109. Rxh1 {[%emt 0:02:07]} Rxh1+ {[%emt 0:00:02]} 110. Rg1 {[%emt 0:00:17]} Nh5 {[%emt 0:01:10]} 111. Qg2 {[%emt 0:00:53]} Qc4+ {[%emt 0:00:13]} 112. Ke1 {[%emt 0:00:16]} Rh3 {[%emt 0:00:45]} 113. Qf2 {[%emt 0:00:28]} Qd3 {[%emt 0:00:45]} 114. Rg2 {[%emt 0:00:30]} Rh1+ {[%emt 0:01:17]} 115. Rg1 {[%emt 0:00:05]} Rh3 {[%emt 0:00:04]} 116. Rg2 {[%emt 0:00:02]} Rh1+ {[%emt 0:01:02]} 117. Rg1 {[%emt 0:00:01]} Rh3 {[%emt 0:00:27]} 1/2-1/2

[Event "ECo-C Extraliga 2023-24"]
[Site "Slovakia"]
[Date "2024.02.25"]
[Round "8.3"]
[White "Solcan, Martin"]
[Black "Hrabusa, Matej"]
[Result "0-1"]
[ECO "A06"]
[WhiteElo "2182"]
[BlackElo "2346"]
[Annotator "TA"]
[PlyCount "86"]
[EventDate "2023.10.06"]
[EventType "team-tourn"]
[EventCountry "SVK"]
[SourceTitle "playchess.com"]
[Source "ChessBase"]
[SourceQuality "1"]
[TimeControl "40/5400+30:1800+30"]

{[%evp 11,86,6,10,-14,0,-11,-12,-12,0,-24,-12,-12,-16,-12,-12,-18,-16,-64,-38,-47,0,0,0,0,0,0,0,0,0,0,0,-17,-5,-19,-10,-102,0,0,0,0,-14,-27,-6,-49,-8,-68,-80,-76,-35,-66,-23,-180,-160,-320,-235,-233,-247,-239,-241,-264,-256,-626,-626,-631,-612,-1047,-1031,-1645,-1600,-1714,-1451,-2053,-1783,-29975,-29973,-29977,-29978]} 1. g3 {[%emt 0:00:03]} d5 {[%emt 0:00:24]} 2. Nf3 {[%emt 0:00:05]} g6 {[%emt 0:00:21]} 3. Bg2 {[%emt 0:00:05]} Bg7 {[%emt 0:00:04]} 4. O-O {[%emt 0:00:11]} e5 {[%emt 0:00:21]} 5. d3 {[%emt 0:00:13]} Nc6 {[%emt 0:00:26]} 6. e4 {[%emt 0:01:16]} Nge7 {[%emt 0:01:17]} 7. Nc3 {[%emt 0:02:45]} d4 {[%emt 0:02:43]} 8. Nd5 {[%emt 0:00:27]} O-O {[%emt 0:07:09]} 9. Re1 {[%emt 0:00:20] The position is equal.} Be6 {[%emt 0:01:11]} 10. Nxe7+ {[%emt 0:02:22]} Qxe7 {[%emt 0:00:20]} 11. Ng5 {[%emt 0:01:10]} Bd7 {[%emt 0:01:48]} 12. f4 {[%emt 0:00:42]} a5 {[%emt 0:04:21]} 13. Bd2 {[%emt 0:08:17]} a4 {[%emt 0:02:53]} 14. c4 {[%emt 0:01:48]} (14. a3 $11 {is superior.}) 14... dxc3 {[%emt 0:04:12]} 15. bxc3 {[%emt 0:00:21]} exf4 {[%emt 0:05:19]} (15... Rad8 $15 {deserves consideration.}) 16. gxf4 $11 {[%emt 0:00:10]} Bxc3 {[%emt 0:01:10]} 17. Bxc3 {[%emt 0:03:07]} Qc5+ {[%emt 0:00:04]} 18. d4 {[%emt 0:01:10][%cal Bd3d4,Bd4d5][%mdl 32]} Qxc3 {[%emt 0:00:05]} 19. d5 {[%emt 0:00:15]} Qd4+ {[%emt 0:02:31]} 20. Qxd4 {[%emt 0:12:39]} Nxd4 {[%emt 0:00:06]} 21. Rab1 {[%emt 0:00:07]} b5 {[%emt 0:10:15][%cal Ob5b4]} 22. e5 {[%emt 0:03:25]} Bf5 {[%emt 0:02:46]} 23. Ne4 {[%emt 0:03:09] [#]} (23. Rbd1 $1 $11 Nc2 24. Re2) 23... Rab8 {[%emt 0:03:07]} (23... b4 $1 $17 {[%cal Rb4b3] Strongly threatening ...b3.} 24. Kf2 (24. Rxb4 $2 {is the wrong capture.} Nc2 $19) 24... b3) 24. Rbd1 {[%emt 0:01:10]} Nc2 {[%emt 0:01:05]} 25. Re2 {[%emt 0:00:07]} Na3 {[%emt 0:00:16]} 26. Rd4 {[%emt 0:02:46]} Rfd8 {[%emt 0:08:01]} 27. Nc5 {[%emt 0:01:21]} Rb6 {[%emt 0:03:08]} 28. Kf2 {[%emt 0:06:45]} (28. Be4 $11) 28... Nb1 $1 $15 {[%emt 0:02:27]} 29. Rb2 {[%emt 0:08:39]} a3 {[%emt 0:02:10]} 30. Rb3 {[%emt 0:00:54] Threatens to win with Be4.} Bc2 {[%emt 0:00:35]} 31. Re3 {[%emt 0:05:20] This costs White the game.} (31. Rdb4 $1 $11 Bxb3 32. Rxb3) 31... b4 $19 {[%emt 0:02:28]} 32. Re1 $2 {[%emt 0:13:27]} (32. Be4 $17 {keeps fighting.} Bxe4 33. Nxe4) 32... Nc3 {[%emt 0:03:35]} 33. Ra1 {[%emt 0:01:47]} Rb5 {[%emt 0:02:12]} 34. Rc4 {[%emt 0:02:55] [#]} Bf5 $1 {[%emt 0:01:38][%cal Oc3a2]} 35. Nb3 {[%emt 0:05:28]} Nxd5 {[%emt 0:04:52] White must now prevent ...Nc3.} 36. Nd4 $2 {[%emt 0:00:18]} (36. Rd1) 36... Nb6 {[%emt 0:01:33]} 37. Nxb5 {[%emt 0:00:39]} Nxc4 {[%emt 0:00:05]} 38. Nxc7 {[%emt 0:00:27]} Rd2+ {[%emt 0:00:24]} 39. Kg3 {[%emt 0:00:15] [#]} Rxa2 $3 {[%emt 0:03:24][%mdl 512]} 40. Rxa2 {[%emt 0:00:58]} (40. Re1 b3) 40... b3 {[%emt 0:00:05]} 41. Rxa3 {[%emt 0:30:17]} Nxa3 {[%emt 0:30:06]} 42. Nd5 {[%emt 0:01:14]} b2 {[%emt 0:00:26]} 43. Nc3 {[%emt 0:00:05] [#]} Nb5 $1 {[%emt 0:00:19][%mdl 512] Weighted Error Value: White=0.74/Black=0.13 (very precise) .  Mistake:       	White=6     	Black=2      Inaccurate:     	White=1     	Black=4      OK:         	White=12    	Black=9      Best:        	White=1     	Black=3      Strong:       	---       	Black=1} 0-1